bitfinex/quotes_BTCUSD_20251016
["timestamp","ask_amount","ask_price","bid_price","bid_amount"]
[1760653919989,0.46791095,108140.0,108130.0,0.27843473]
[1760653920386,0.46791095,108140.0,108130.0,0.27844254]
[1760653920838,0.18496254,108130.0,108120.0,0.2746694]
[1760653921070,0.18496254,108130.0,108120.0,0.36814977]
[1760653921071,0.67020601,108130.0,108120.0,0.36814977]
[1760653921285,0.48524347,108130.0,108120.0,0.27466977]
[1760653921521,0.18494544,108140.0,108130.0,0.18496254]
[1760653921522,0.67024659,108140.0,108130.0,0.18496254]
[1760653921722,0.94510415,108140.0,108130.0,0.18496254]
[1760653922303,0.94510415,108140.0,108120.0,0.36814977]
[1760653922505,0.59221621,108160.0,108140.0,0.18494544]
[1760653922758,0.5550297,108150.0,108130.0,0.27465266]
[1760653922965,0.92514816,108140.0,108120.0,0.18496772]
[1760653923137,0.57501021,108140.0,108120.0,0.27465784]
[1760653923320,0.37010136,108130.0,108120.0,0.27465784]
[1760653923517,0.37010136,108130.0,108120.0,0.36813784]
[1760653923727,0.5550468,108140.0,108130.0,0.18496254]
[1760653923887,0.39006921,108140.0,108130.0,0.18496254]
[1760653924126,0.19417475,108150.0,108130.0,0.27844254]
[1760653924478,0.21414261,108150.0,108130.0,0.27844254]
[1760653924701,0.2048962,108150.0,108140.0,0.18494544]
[1760653924883,0.2048962,108150.0,108130.0,0.27465266]
[1760653925057,0.57499756,108150.0,108130.0,0.36817266]
[1760653925241,0.57499756,108150.0,108140.0,0.09352]
[1760653925466,0.57499756,108150.0,108140.0,0.27846544]
[1760653926057,0.57499756,108150.0,108140.0,0.18494544]
[1760653926240,0.57499756,108150.0,108140.0,0.27846544]
[1760653926443,0.57499756,108150.0,108140.0,0.09352]
[1760653926892,0.57499756,108150.0,108130.0,0.27465266]
[1760653927053,0.57499756,108150.0,108140.0,0.09352]
[1760653927915,0.57499756,108150.0,108140.0,0.09348]
[1760653928542,0.18494544,108140.0,108130.0,0.08969012]
[1760653928753,0.5550468,108140.0,108130.0,0.27465266]
[1760653929084,0.37010136,108140.0,108130.0,0.27465266]
[1760653929273,0.5550468,108140.0,108130.0,0.36813266]
[1760653929611,0.37010136,108140.0,108130.0,0.27465266]
[1760653929819,0.37010136,108140.0,108130.0,0.36813266]
[1760653930226,0.5550468,108140.0,108120.0,0.1942167]
[1760653930494,0.5550468,108140.0,108130.0,0.27844254]
[1760653930852,0.37010136,108140.0,108130.0,0.27844254]
[1760653931037,0.5550468,108140.0,108130.0,0.27844254]
[1760653931433,0.37010136,108140.0,108130.0,0.27844254]
[1760653931636,0.18494544,108140.0,108130.0,0.27844254]
[1760653932044,0.18494544,108140.0,108130.0,0.18496254]
[1760653932250,0.57500537,108150.0,108130.0,0.36813266]
[1760653932251,0.20490471,108150.0,108130.0,0.36813266]
[1760653932447,0.20490471,108150.0,108130.0,0.73823402]
[1760653932814,0.57500607,108150.0,108140.0,0.18494544]
[1760653933189,0.57500607,108150.0,108140.0,0.27842544]
[1760653933729,0.57500607,108150.0,108140.0,0.18494544]
[1760653933932,0.20490471,108150.0,108140.0,0.18494544]
[1760653934130,0.18492904,108150.0,108140.0,0.18494544]
[1760653934332,0.5550304,108150.0,108140.0,0.27838544]
[1760653934988,0.5550304,108150.0,108140.0,0.18494544]
[1760653935192,0.5550304,108150.0,108140.0,0.09348]
[1760653935435,0.5550304,108150.0,108140.0,0.27842544]
[1760653935622,0.5550304,108150.0,108140.0,0.18494544]
[1760653935834,0.5550304,108150.0,108140.0,0.27838544]
[1760653936400,0.5550304,108150.0,108140.0,0.09344]
[1760653936976,0.5550304,108150.0,108130.0,0.36809266]
[1760653937115,0.5550304,108150.0,108130.0,0.27465266]
[1760653937320,0.5550304,108150.0,108130.0,0.36809266]
[1760653937525,0.5550304,108150.0,108140.0,0.18494544]
[1760653940803,0.5550304,108150.0,108130.0,0.36809266]
[1760653941214,0.5550304,108150.0,108140.0,0.18494544]
[1760653941418,0.5550304,108150.0,108130.0,0.36809266]
[1760653941624,0.5550468,108140.0,108130.0,0.36809266]
[1760653941834,0.37010136,108140.0,108130.0,0.36809266]
[1760653942303,0.37010136,108140.0,108130.0,0.36805266]
[1760653942512,0.18492904,108150.0,108140.0,0.18494544]
[1760653942713,0.5550304,108150.0,108140.0,0.18494544]
[1760653942972,0.57501223,108150.0,108140.0,0.18494544]
[1760653944686,0.5550297,108150.0,108140.0,0.18494544]
[1760653946841,0.5550297,108150.0,108130.0,0.27465266]
[1760653947054,0.5550468,108140.0,108130.0,0.36805266]
[1760653947260,0.5550468,108140.0,108130.0,0.18496254]
[1760653947486,0.5550468,108140.0,108130.0,0.27832254]
[1760653948306,0.37010136,108140.0,108130.0,0.18496254]
[1760653948515,0.5550468,108140.0,108130.0,0.27832254]
[1760653952220,0.32082915,108140.0,108130.0,0.27832254]
[1760653952423,0.32082915,108140.0,108130.0,0.18496254]
[1760653952627,0.32082915,108140.0,108130.0,0.27832254]
[1760653953282,0.32082915,108140.0,108130.0,0.18496254]
[1760653953631,0.32082915,108140.0,108130.0,0.27832254]
[1760653954375,0.32082915,108140.0,108130.0,0.18496254]
[1760653954576,0.13588371,108140.0,108130.0,0.27828254]
[1760653954976,0.18492834,108150.0,108140.0,0.18494544]
[1760653955378,0.5550297,108150.0,108140.0,0.18494544]
[1760653955824,0.23048948,108160.0,108150.0,0.18492834]
[1760653956033,0.57515512,108160.0,108150.0,0.18492834]
[1760653956576,0.57515512,108160.0,108140.0,0.30946479]
[1760653957328,0.18492834,108150.0,108140.0,0.27826544]
[1760653957530,0.5550297,108150.0,108130.0,0.19421066]
[1760653957737,0.5550468,108140.0,108130.0,0.28390078]
[1760653957950,0.5550468,108140.0,108130.0,0.37726078]
[1760653958170,0.5550468,108140.0,108130.0,0.18305012]
[1760653958364,0.5550468,108140.0,108130.0,0.18496254]
[1760653958568,0.5550468,108140.0,108130.0,0.27828254]
[1760653959048,0.37010136,108140.0,108130.0,0.18496254]
[1760653959182,0.18492834,108150.0,108130.0,0.27828254]
[1760653959385,0.5550297,108150.0,108130.0,0.27828254]
[1760653959587,0.5550297,108150.0,108140.0,0.18494544]
[1760653959817,0.18492834,108150.0,108140.0,0.18494544]
[1760653959974,0.5550297,108150.0,108140.0,0.27826544]
[1760653960171,0.37010136,108150.0,108140.0,0.18494544]
[1760653960453,0.18492834,108150.0,108140.0,0.27830544]
[1760653960661,0.5550297,108150.0,108140.0,0.27830544]
[1760653961193,0.18492834,108150.0,108140.0,0.27830544]
[1760653961387,0.02014104,108160.0,108150.0,0.18492834]
[1760653961595,0.0001504,108160.0,108150.0,0.64471982]
[1760653962233,0.0001504,108160.0,108150.0,0.73807982]
[1760653962998,0.0001504,108160.0,108150.0,0.36797846]
[1760653963216,0.0001504,108160.0,108150.0,0.73807982]
[1760653965254,0.0001504,108160.0,108150.0,0.36797846]
[1760653965483,0.18506164,108160.0,108150.0,0.27461846]
[1760653965709,0.37025176,108160.0,108150.0,0.36805846]
[1760653965904,0.37025176,108160.0,108150.0,0.27461846]
[1760653966138,0.0001504,108160.0,108150.0,0.36805846]
[1760653966703,0.0001504,108160.0,108150.0,0.73815982]
[1760653967731,0.0001504,108160.0,108150.0,0.64471982]
[1760653968071,0.0001504,108160.0,108150.0,0.27461846]
[1760653968270,0.0001504,108160.0,108150.0,0.73815982]
[1760653968698,0.0001504,108160.0,108150.0,0.64471982]
[1760653968905,0.0001504,108160.0,108150.0,0.73815982]
[1760653970172,0.0001504,108160.0,108150.0,0.64471982]
[1760653970378,0.0001504,108160.0,108150.0,0.73811982]
[1760653970772,0.0001504,108160.0,108150.0,0.64471982]
[1760653971022,0.0001504,108160.0,108150.0,0.73811982]
[1760653971364,0.0001504,108160.0,108150.0,5.73811982]
[1760653971611,0.0001504,108160.0,108150.0,5.64471982]
[1760653971836,0.0001504,108160.0,108150.0,5.73811982]
[1760653973146,0.0001504,108160.0,108150.0,5.64471982]
[1760653973323,0.0001504,108160.0,108150.0,5.73811982]
[1760653973525,0.0001504,108160.0,108150.0,5.73911982]
[1760653974607,0.0001504,108160.0,108150.0,5.64571982]
[1760653974806,0.0001504,108160.0,108150.0,5.73911982]
[1760653975249,0.0001504,108160.0,108150.0,5.64571982]
[1760653975454,0.56364547,108190.0,108170.0,0.18489414]
[1760653975670,0.18487722,108180.0,108170.0,0.27829414]
[1760653975878,0.18487722,108180.0,108170.0,0.18489414]
[1760653976034,0.18487722,108180.0,108170.0,0.27829414]
[1760653976855,0.0005028,108190.0,108180.0,0.18487705]
[1760653977077,0.18536276,108190.0,108170.0,0.18489414]
[1760653977278,0.21315774,108190.0,108170.0,0.27829414]
[1760653977605,0.18536276,108190.0,108180.0,0.0934]
[1760653977964,0.18536276,108190.0,108170.0,0.18489414]
[1760653978172,0.21315774,108190.0,108180.0,0.0934]
[1760653978397,0.18536276,108190.0,108180.0,0.0934]
[1760653978700,0.21315774,108190.0,108180.0,0.27827705]
[1760653978897,0.21315774,108190.0,108180.0,0.18487705]
[1760653979130,0.21315774,108190.0,108180.0,0.27827705]
[1760653979536,0.6171893,108190.0,108180.0,0.27823705]
[1760653979662,0.21315774,108190.0,108180.0,0.18487705]
[1760653979869,0.6171893,108190.0,108180.0,0.09336]
[1760653980734,0.6171893,108190.0,108180.0,0.27823705]
[1760653980910,0.21315774,108190.0,108180.0,0.27823705]
[1760653981503,0.21315774,108190.0,108180.0,0.18487705]
[1760653981740,0.21315774,108190.0,108180.0,0.27823705]
[1760653982291,0.21315774,108190.0,108180.0,0.09336]
[1760653982495,0.18487705,108180.0,108170.0,0.21731516]
[1760653982694,0.21315774,108190.0,108170.0,0.30700528]
[1760653982900,0.18536276,108190.0,108180.0,0.09336]
[1760653983095,0.18536276,108190.0,108180.0,0.27823705]
[1760653983330,0.18536276,108190.0,108180.0,0.18487705]
[1760653983538,0.2131565,108190.0,108180.0,0.27823705]
[1760653984841,0.2131565,108190.0,108180.0,0.18487705]
[1760653985049,0.2131565,108190.0,108180.0,0.09332]
[1760653986691,0.2131565,108190.0,108180.0,0.27819705]
[1760653987866,0.2131565,108190.0,108180.0,0.18487705]
[1760653988070,0.2131565,108190.0,108180.0,0.27819705]
[1760653989366,0.2131565,108190.0,108180.0,0.18487705]
[1760653989591,0.2131565,108190.0,108180.0,0.27819705]
[1760653989794,0.2131565,108190.0,108180.0,0.09332]
[1760653990183,0.23307148,108190.0,108180.0,0.09332]
[1760653990384,0.18487705,108180.0,108170.0,0.30700528]
[1760653990560,0.18487705,108180.0,108170.0,0.40032528]
[1760653990927,0.18487705,108180.0,108170.0,0.40028528]
[1760653991131,0.21267079,108180.0,108170.0,0.40028528]
[1760653991330,0.02779374,108180.0,108170.0,0.40028528]
[1760653991770,0.02779374,108180.0,108170.0,0.30700528]
[1760653991990,0.02779374,108180.0,108170.0,0.40028528]
[1760653992608,0.02779374,108180.0,108170.0,0.30700528]
[1760653992785,0.02779374,108180.0,108170.0,0.40028528]
[1760653993479,0.02779374,108180.0,108170.0,0.30700528]
[1760653993680,0.02779374,108180.0,108170.0,0.40028528]
[1760653994387,0.02779374,108180.0,108170.0,0.30700528]
[1760653994582,0.02779374,108180.0,108170.0,0.40028528]
[1760653994998,0.02779374,108180.0,108170.0,0.30700528]
[1760653995198,0.02779374,108180.0,108170.0,0.40028528]
[1760653995933,0.61670235,108180.0,108170.0,0.27458426]
[1760653996136,0.63661733,108180.0,108170.0,0.18489414]
[1760653996383,0.63661733,108180.0,108170.0,0.09332]
[1760653996960,0.63661733,108180.0,108170.0,0.27817414]
[1760653997159,0.63661733,108180.0,108170.0,0.18489414]
[1760653997385,0.63661733,108180.0,108170.0,0.27817414]
[1760653997784,0.63661733,108180.0,108170.0,0.18489414]
[1760654001108,0.63661733,108180.0,108160.0,0.32011027]
[1760654001306,0.63661733,108180.0,108160.0,0.31652039]
[1760654001541,0.60882359,108180.0,108170.0,0.09328]
[1760654001947,0.63661937,108180.0,108170.0,0.27817414]
[1760654005923,0.63661937,108180.0,108170.0,0.18489414]
[1760654006079,0.63661937,108180.0,108170.0,0.27813414]
[1760654007075,0.63661937,108180.0,108170.0,0.18489414]
[1760654007286,0.63661937,108180.0,108170.0,0.27813414]
[1760654008334,0.21267283,108180.0,108170.0,0.27813414]
[1760654008554,0.21267283,108180.0,108170.0,0.18489414]
[1760654008710,0.21267283,108180.0,108170.0,0.27813414]
[1760654009123,0.02779578,108180.0,108170.0,0.36782426]
[1760654010614,0.0005028,108190.0,108180.0,0.18487705]
[1760654010790,0.0005028,108190.0,108180.0,0.27456717]
[1760654011484,0.0005028,108190.0,108180.0,0.36780717]
[1760654011702,0.0005028,108190.0,108180.0,0.77183873]
[1760654011916,0.0005028,108190.0,108180.0,0.67859873]
[1760654012138,0.0005028,108190.0,108180.0,0.77183873]
[1760654012557,0.0005028,108190.0,108180.0,0.77187873]
[1760654013420,0.0005028,108190.0,108180.0,5.77187873]
[1760654013601,0.0005028,108190.0,108180.0,6.11187873]
[1760654014186,0.0005028,108190.0,108180.0,6.01859873]
[1760654014394,0.0005028,108190.0,108180.0,6.11187873]
[1760654014859,0.0005028,108190.0,108180.0,6.13990586]
[1760654015084,0.0005028,108190.0,108180.0,6.11187873]
[1760654015414,0.0005028,108190.0,108180.0,6.01859873]
[1760654015614,0.0005028,108190.0,108180.0,6.11183873]
[1760654016058,0.0005028,108190.0,108180.0,6.11283873]
[1760654016264,0.0005028,108190.0,108180.0,6.01959873]
[1760654016831,0.0005028,108190.0,108180.0,6.11283873]
[1760654022343,0.0005028,108190.0,108180.0,5.61556717]
[1760654022548,0.58887463,108200.0,108190.0,5.18485996]
[1760654022744,0.58902538,108200.0,108190.0,0.18293012]
[1760654022941,0.18485996,108190.0,108180.0,0.001]
[1760654023177,0.40403156,108190.0,108180.0,0.36880717]
[1760654023560,0.58902538,108200.0,108180.0,0.27556717]
[1760654023762,0.02779194,108190.0,108180.0,0.36880717]
[1760654024135,0.02779194,108190.0,108180.0,0.27556717]
[1760654024330,0.00015075,108200.0,108190.0,0.18485996]
[1760654024675,0.61681499,108200.0,108190.0,0.18297012]
[1760654024880,0.61681499,108200.0,108190.0,0.18301012]
[1760654025045,0.61681499,108200.0,108190.0,0.08969012]
[1760654025250,0.61681499,108200.0,108180.0,0.27819705]
[1760654025456,0.21278343,108200.0,108180.0,0.36788717]
[1760654025755,0.18485996,108190.0,108180.0,0.36788717]
[1760654025963,0.18485996,108190.0,108180.0,0.27456717]
[1760654026230,0.21278343,108200.0,108180.0,0.36788717]
[1760654026823,0.21263268,108200.0,108180.0,0.36788717]
[1760654027026,0.21263268,108200.0,108190.0,0.18485996]
[1760654027187,0.21263268,108200.0,108190.0,0.36783008]
[1760654027388,0.0277898,108200.0,108190.0,0.27455008]
[1760654027630,0.21263268,108200.0,108190.0,0.36787008]
[1760654028840,0.0277898,108200.0,108190.0,0.36787008]
[1760654029216,0.18482682,108210.0,108200.0,0.18484288]
[1760654029420,0.18482682,108210.0,108190.0,0.36787008]
[1760654029691,0.18484288,108200.0,108190.0,0.08969012]
[1760654029864,0.58887444,108200.0,108190.0,0.27455008]
[1760654030105,0.58887444,108200.0,108190.0,0.36787008]
[1760654030485,0.18484288,108200.0,108190.0,0.36787008]
[1760654030781,0.18484288,108200.0,108190.0,0.27455008]
[1760654030982,0.18484288,108200.0,108190.0,0.36787008]
[1760654031384,0.58887444,108200.0,108190.0,0.27455008]
[1760654031593,0.40403156,108200.0,108190.0,0.36787008]
[1760654031970,0.40403156,108200.0,108190.0,0.27455008]
[1760654032173,0.40403156,108200.0,108190.0,0.36787008]
[1760654032796,0.58887444,108200.0,108190.0,0.08969012]
[1760654032970,0.58887444,108200.0,108190.0,0.18301012]
[1760654033174,0.58887444,108200.0,108190.0,0.36787008]
[1760654033380,0.58887444,108200.0,108190.0,0.27455008]
[1760654033573,0.58887444,108200.0,108190.0,0.36787008]
[1760654034618,0.58887444,108200.0,108190.0,0.27455008]
[1760654035174,0.58887444,108200.0,108190.0,0.36783008]
[1760654036787,0.58887444,108200.0,108190.0,0.27455008]
[1760654036986,0.58887444,108200.0,108190.0,0.36783008]
[1760654037366,0.58878219,108200.0,108190.0,0.36783008]
[1760654037559,0.9242101,108200.0,108190.0,0.36783008]
[1760654037785,0.55452649,108200.0,108190.0,0.36783008]
[1760654038238,0.55452649,108200.0,108190.0,0.27455008]
[1760654038430,0.9242101,108200.0,108190.0,0.36787008]
[1760654038655,0.9242101,108200.0,108190.0,0.36783008]
[1760654039207,0.55452649,108200.0,108190.0,0.36783008]
[1760654040409,0.55452649,108200.0,108190.0,0.27455008]
[1760654040603,0.55452649,108200.0,108190.0,0.36783008]
[1760654040808,0.36968361,108200.0,108190.0,0.36783008]
[1760654041176,0.55452649,108200.0,108190.0,0.36783008]
[1760654041736,0.36968361,108200.0,108190.0,0.36783008]
[1760654042073,0.39747282,108200.0,108190.0,0.36783008]
[1760654042701,0.5823157,108200.0,108190.0,0.36783008]
[1760654044033,0.39747282,108200.0,108190.0,0.36783008]
[1760654044239,0.39747282,108200.0,108190.0,0.27455008]
[1760654044438,0.39747282,108200.0,108190.0,0.36783008]
[1760654044840,0.39747282,108200.0,108190.0,0.27455008]
[1760654045042,0.39747282,108200.0,108190.0,0.36783008]
[1760654046586,0.16603706,108200.0,108190.0,0.36783008]
[1760654047201,0.16603706,108200.0,108190.0,0.27455008]
[1760654047400,0.16603706,108200.0,108190.0,0.36779008]
[1760654047840,0.16603706,108200.0,108190.0,0.27455008]
[1760654048041,0.16603706,108200.0,108190.0,0.36779008]
[1760654048484,0.16603706,108200.0,108190.0,0.27455008]
[1760654048690,0.16603706,108200.0,108190.0,0.36779008]
[1760654050890,0.16603706,108200.0,108190.0,0.27455008]
[1760654051134,0.16603706,108200.0,108190.0,0.36779008]
[1760654052231,0.35087994,108200.0,108190.0,0.36779008]
[1760654052657,0.35087994,108200.0,108190.0,0.27455008]
[1760654052882,0.35087994,108200.0,108190.0,0.36775008]
[1760654054143,0.35087994,108200.0,108190.0,0.27455008]
[1760654054358,0.16603706,108200.0,108190.0,0.36775008]
[1760654054565,0.21261603,108210.0,108190.0,0.36775008]
[1760654054763,0.36968361,108200.0,108190.0,0.36775008]
[1760654055320,0.55452649,108200.0,108190.0,0.36775008]
[1760654055932,0.55452649,108200.0,108190.0,0.27455008]
[1760654056136,0.55452649,108200.0,108190.0,0.36775008]
[1760654056339,0.36968361,108200.0,108190.0,0.36775008]
[1760654056531,0.55452649,108200.0,108190.0,0.36775008]
[1760654058011,0.36968361,108200.0,108190.0,0.36775008]
[1760654058378,0.55452649,108200.0,108190.0,0.36775008]
[1760654058600,0.55452649,108200.0,108190.0,0.27455008]
[1760654058796,0.55452649,108200.0,108190.0,0.36775008]
[1760654059244,0.55452649,108200.0,108190.0,0.27455008]
[1760654059427,0.55452649,108200.0,108190.0,0.36775008]
[1760654059791,0.55452649,108200.0,108190.0,0.27455008]
[1760654059977,0.55452649,108200.0,108190.0,0.36775008]
[1760654062437,0.21261603,108210.0,108190.0,0.36775008]
[1760654062620,0.36968361,108200.0,108190.0,0.36775008]
[1760654062829,0.36968361,108200.0,108190.0,0.27455008]
[1760654063174,0.36968361,108200.0,108190.0,0.36775008]
[1760654065340,0.36968361,108200.0,108190.0,0.27455008]
[1760654065595,0.21261603,108210.0,108200.0,0.18484288]
[1760654065717,0.60228393,108210.0,108200.0,0.18484288]
[1760654065947,0.60228393,108210.0,108190.0,0.36775008]
[1760654066154,0.36968361,108200.0,108190.0,0.36775008]
[1760654066757,0.36968361,108200.0,108190.0,0.27455008]
[1760654067050,0.36968361,108200.0,108190.0,0.36775008]
[1760654067421,0.21261603,108210.0,108190.0,0.27455008]
[1760654067624,0.36968361,108200.0,108190.0,0.36775008]
[1760654068472,0.55452649,108200.0,108190.0,0.36775008]
[1760654069328,0.39747261,108200.0,108190.0,0.36775008]
[1760654069658,0.58231549,108200.0,108190.0,0.36775008]
[1760654070049,0.58231549,108200.0,108190.0,0.27455008]
[1760654070299,0.58231549,108200.0,108190.0,0.36775008]
[1760654071411,0.58231549,108200.0,108190.0,0.27455008]
[1760654071629,0.9519991,108200.0,108190.0,0.18289012]
[1760654071855,0.97198869,108200.0,108180.0,5.18487696]
[1760654072102,0.36968361,108190.0,108180.0,0.36791783]
[1760654072474,0.36968361,108190.0,108180.0,0.27471783]
[1760654072700,0.36968361,108190.0,108180.0,0.36791783]
[1760654072864,0.36968361,108190.0,108180.0,0.27471783]
[1760654073067,0.55454357,108190.0,108180.0,0.08984087]
[1760654073282,0.55454357,108190.0,108180.0,0.00115075]
[1760654073499,0.58233608,108190.0,108180.0,0.1860278]
[1760654074052,0.58233608,108190.0,108180.0,0.00115075]
[1760654074482,0.58233608,108190.0,108180.0,0.00015075]
[1760654075133,0.97199778,108190.0,108180.0,0.00015075]
[1760654076712,1.00818006,108190.0,108180.0,0.00015075]
[1760654077766,1.03213759,108190.0,108180.0,0.00015075]
[1760654081128,2.23087854,108190.0,108180.0,0.00015075]
[1760654081835,1.14674347,108190.0,108180.0,0.00015075]
[1760654082040,1.12182771,108190.0,108180.0,0.00015075]
[1760654082249,2.23087854,108190.0,108180.0,0.00015075]
[1760654082692,0.18492834,108150.0,108140.0,0.34]
[1760654082916,0.18492834,108150.0,108130.0,0.11159673]
[1760654082917,0.18494544,108140.0,108130.0,0.10808685]
[1760654083133,0.55462905,108140.0,108130.0,0.63868029]
[1760654084527,0.55462905,108140.0,108130.0,0.11371775]
[1760654084728,0.55462905,108140.0,108130.0,0.29868029]
[1760654088362,0.92431266,108140.0,108130.0,0.09019292]
[1760654088574,0.92431266,108140.0,108130.0,0.0005028]
[1760654088787,2.03336349,108140.0,108130.0,0.0005028]
[1760654088998,0.92431266,108140.0,108130.0,0.0005028]
[1760654089208,2.08941719,108140.0,108130.0,0.0005028]
[1760654090442,2.17910731,108140.0,108130.0,0.0005028]
[1760654090687,2.17910731,108140.0,108130.0,1e-08]
[1760654090902,2.20402307,108140.0,108130.0,1e-08]
[1760654091111,4.08573671,108140.0,108130.0,1e-08]
[1760654091323,9.11053656,108140.0,108130.0,1e-08]
[1760654091546,7.26211851,108140.0,108130.0,1e-08]
[1760654091749,7.2124029,108140.0,108130.0,1e-08]
[1760654091955,9.06082095,108140.0,108130.0,1e-08]
[1760654092158,9.21821169,108140.0,108130.0,1e-08]
[1760654092610,9.55821169,108140.0,108130.0,1e-08]
[1760654092835,9.5249161,108140.0,108130.0,1e-08]
[1760654093048,9.47520049,108140.0,108130.0,1e-08]
[1760654093260,9.54089919,108140.0,108130.0,1e-08]
[1760654093475,9.47620049,108140.0,108130.0,1e-08]
[1760654093888,9.47520049,108140.0,108130.0,1e-08]
[1760654094328,9.47620049,108140.0,108130.0,1e-08]
[1760654094536,9.49225595,108140.0,108130.0,1e-08]
[1760654094744,9.40890517,108140.0,108130.0,1e-08]
[1760654094945,9.41090517,108140.0,108130.0,1e-08]
[1760654095388,9.47660387,108140.0,108130.0,1e-08]
[1760654096409,0.22117904,108110.0,108100.0,0.08050491]
[1760654096582,1.00526746,108110.0,108100.0,0.08050491]
[1760654096989,0.20496095,108110.0,108100.0,0.08050491]
[1760654097186,0.57464456,108110.0,108100.0,0.08050491]
[1760654097545,0.57526312,108110.0,108100.0,0.08050491]
[1760654097731,0.6096082,108110.0,108100.0,0.08050491]
[1760654099535,0.63436521,108110.0,108100.0,0.08050491]
[1760654101489,0.66737456,108110.0,108100.0,0.08050491]
[1760654101687,0.40586824,108110.0,108100.0,0.08050491]
[1760654101921,0.590865,108110.0,108100.0,0.08050491]
[1760654105172,0.02475701,108110.0,108100.0,0.26551878]
[1760654105385,0.24581994,108120.0,108110.0,0.18499676]
[1760654105386,0.5896269,108120.0,108110.0,0.18499676]
[1760654105622,0.18497965,108120.0,108110.0,0.18514716]
[1760654105822,0.5896269,108120.0,108110.0,0.18514716]
[1760654106032,0.62364454,108130.0,108110.0,0.18514716]
[1760654106235,0.18497965,108120.0,108110.0,0.18514716]
[1760654107323,0.5896269,108120.0,108110.0,0.18514716]
[1760654108740,0.40464725,108120.0,108110.0,0.18514716]
[1760654108946,0.02475701,108130.0,108120.0,0.18497965]
[1760654109064,0.23751876,108140.0,108130.0,0.18496254]
[1760654109259,0.02475701,108140.0,108130.0,0.18496254]
[1760654109574,0.6143497,108140.0,108130.0,0.18496254]
[1760654111491,0.6143497,108140.0,108130.0,0.20826927]
[1760654111682,0.67211606,108140.0,108130.0,0.20826927]
[1760654111894,0.67211606,108140.0,108130.0,0.18496254]
[1760654111895,0.08252337,108140.0,108130.0,0.18496254]
[1760654112088,0.03300935,108140.0,108130.0,0.18496254]
[1760654112502,0.21795479,108140.0,108130.0,0.18496254]
[1760654113712,0.64249866,108140.0,108130.0,0.18496254]
[1760654114702,0.64249866,108140.0,108120.0,0.39171449]
[1760654114703,0.18496254,108130.0,108120.0,0.39171449]
[1760654114930,0.18497965,108120.0,108110.0,0.0001504]
[1760654115085,0.63439909,108120.0,108110.0,0.0001504]
[1760654115289,1.50149808,108120.0,108110.0,0.0001504]
[1760654115497,0.69220358,108120.0,108110.0,0.0001504]
[1760654115708,1.48545947,108120.0,108110.0,0.0001504]
[1760654115907,0.58964401,108110.0,108100.0,0.08050491]
[1760654116123,0.67643787,108110.0,108100.0,0.08064447]
[1760654116691,0.67643787,108110.0,108100.0,0.26565834]
[1760654116892,0.28785086,108110.0,108100.0,0.26565834]
[1760654117092,0.69249811,108110.0,108100.0,0.08064447]
[1760654117431,0.67646263,108110.0,108100.0,0.26565834]
[1760654117596,0.67646263,108110.0,108100.0,0.08064447]
[1760654117795,0.67646263,108110.0,108100.0,0.08164447]
[1760654118420,0.97378077,108110.0,108100.0,0.08164447]
[1760654120276,0.92400977,108110.0,108100.0,0.03160822]
[1760654120815,0.75129938,108110.0,108100.0,0.03160822]
[1760654121035,0.93629614,108110.0,108100.0,0.03160822]
[1760654121232,0.96950076,108110.0,108100.0,0.03060822]
[1760654121638,0.26801316,108110.0,108100.0,0.03060822]
[1760654121999,0.9201892,108110.0,108100.0,0.03060822]
[1760654122629,0.03320462,108110.0,108100.0,0.21562209]
[1760654122834,0.02490159,108110.0,108100.0,0.21562209]
[1760654123039,0.20989835,108110.0,108100.0,0.21562209]
[1760654123241,0.02490159,108110.0,108100.0,0.21562209]
[1760654123791,0.20989835,108110.0,108100.0,0.21562209]
[1760654124230,0.20989835,108110.0,108100.0,0.03160822]
[1760654125264,0.20989835,108110.0,108100.0,0.21662209]
[1760654126886,0.02490159,108110.0,108100.0,0.21662209]
[1760654127035,0.20988212,108120.0,108100.0,0.21662209]
[1760654127240,0.02490159,108120.0,108110.0,0.18499676]
[1760654127442,0.02490159,108120.0,108110.0,0.27835676]
[1760654127706,0.21817607,108130.0,108120.0,0.18497965]
[1760654127707,0.20987304,108130.0,108120.0,0.18497965]
[1760654128250,0.20987304,108130.0,108110.0,0.27835676]
[1760654128788,0.20987304,108130.0,108110.0,0.18499676]
[1760654128985,0.18497965,108120.0,108110.0,0.27835676]
[1760654130117,0.88695927,108130.0,108110.0,0.27835676]
[1760654130525,0.18497965,108120.0,108110.0,0.27835676]
[1760654130910,0.20987304,108130.0,108110.0,0.18499676]
[1760654131112,0.02490159,108130.0,108120.0,0.18497965]
[1760654131333,0.20986413,108130.0,108120.0,0.18497965]
[1760654132189,0.18496254,108130.0,108120.0,0.18497965]
[1760654132745,0.95428674,108140.0,108120.0,0.18497965]
[1760654132949,0.18496254,108130.0,108120.0,0.18497965]
[1760654133157,0.20489132,108130.0,108120.0,0.18497965]
[1760654134548,0.20489132,108130.0,108110.0,0.36800688]
[1760654134737,0.18497965,108120.0,108110.0,0.36800688]
[1760654135242,0.20489132,108130.0,108110.0,0.36800688]
[1760654135444,0.20489132,108130.0,108110.0,0.27468688]
[1760654135650,0.20489132,108130.0,108110.0,0.36800688]
[1760654136062,0.20489132,108130.0,108110.0,0.27468688]
[1760654136260,0.20489132,108130.0,108110.0,0.36900688]
[1760654136698,0.20489132,108130.0,108110.0,0.27568688]
[1760654136902,0.20489132,108130.0,108110.0,0.36900688]
[1760654137139,0.18497965,108120.0,108110.0,0.36900688]
[1760654137365,0.18497965,108120.0,108110.0,0.09069012]
[1760654137569,0.18497965,108120.0,108110.0,0.001]
[1760654137570,0.88663935,108120.0,108110.0,0.001]
[1760654137829,0.18499676,108110.0,108100.0,0.03060822]
[1760654138058,0.58960832,108110.0,108100.0,0.21361834]
[1760654138467,0.58960832,108110.0,108100.0,0.03060822]
[1760654139469,0.58965914,108110.0,108100.0,0.21562209]
[1760654139844,0.58965914,108110.0,108100.0,0.21662209]
[1760654139845,0.7018725,108120.0,108100.0,0.21662209]
[1760654140185,0.7018725,108120.0,108100.0,0.39963221]
[1760654140186,0.18499676,108110.0,108100.0,0.39963221]
[1760654140395,0.18499676,108110.0,108100.0,0.21461834]
[1760654140596,0.18499676,108110.0,108100.0,0.39963221]
[1760654141125,0.18499676,108110.0,108100.0,0.30531221]
[1760654141425,0.18498343,108120.0,108100.0,0.39863221]
[1760654141637,0.18498343,108120.0,108110.0,0.18499676]
[1760654142049,0.18497965,108120.0,108110.0,0.18499676]
[1760654142292,0.18497965,108120.0,108110.0,0.27831676]
[1760654143210,0.18497965,108120.0,108110.0,0.18499676]
[1760654143414,0.18497965,108120.0,108110.0,0.27835676]
[1760654143659,0.18497965,108120.0,108110.0,0.09336]
[1760654143856,0.17871986,108120.0,108110.0,0.09336]
[1760654144264,0.17871986,108120.0,108110.0,0.27835676]
[1760654144435,0.17871986,108120.0,108110.0,0.18499676]
[1760654144635,0.17871986,108120.0,108110.0,0.27835676]
[1760654145098,0.17871986,108120.0,108110.0,0.18599676]
[1760654145227,0.17871986,108120.0,108110.0,0.27935676]